bitfinex/quotes_BTCUSD_20250726
["timestamp","ask_amount","ask_price","bid_price","bid_amount"]
[1753500462751,0.1810922,117630.0,117620.0,0.50773659]
[1753500462984,0.18109213,117630.0,117620.0,0.51623825]
[1753500463210,0.18109213,117630.0,117620.0,0.50773659]
[1753500463418,0.18109213,117630.0,117620.0,0.51623825]
[1753500463636,0.18109213,117630.0,117620.0,0.24084777]
[1753500464060,0.18109213,117630.0,117620.0,0.23234618]
[1753500464274,0.17259119,117630.0,117620.0,0.24084777]
[1753500465330,0.17259119,117630.0,117620.0,0.51623825]
[1753500465535,0.17259119,117630.0,117620.0,0.52473984]
[1753500466411,0.17259119,117630.0,117620.0,0.51623825]
[1753500466620,0.17259119,117630.0,117620.0,0.52473984]
[1753500467054,0.17259119,117630.0,117620.0,0.51623796]
[1753500467478,0.17259119,117630.0,117620.0,0.52473948]
[1753500467679,0.17259119,117630.0,117620.0,0.51623796]
[1753500468563,0.17259119,117630.0,117620.0,0.50773637]
[1753500468791,0.1810922,117630.0,117620.0,0.21534264]
[1753500469006,0.2214222,117630.0,117620.0,0.21534264]
[1753500469435,0.1830722,117630.0,117620.0,0.2238443]
[1753500469895,0.1830722,117630.0,117620.0,0.21534264]
[1753500472476,0.24572336,117630.0,117620.0,0.17872091]
[1753500472738,0.51321543,117630.0,117620.0,0.1702191]
[1753500472973,0.67699791,117630.0,117620.0,0.1702191]
[1753500473685,0.6684969,117630.0,117620.0,0.1702191]
[1753500474128,0.6656369,117630.0,117620.0,0.1702191]
[1753500475432,0.6656369,117630.0,117620.0,0.00018]
[1753500475645,0.65999574,117630.0,117620.0,0.00018]
[1753500478856,0.37610367,117630.0,117620.0,0.00018]
[1753500479073,0.99999574,117630.0,117620.0,0.00018]
[1753500484512,1.28388781,117630.0,117620.0,0.00018]
[1753500484730,1.30942781,117630.0,117620.0,0.00018]
[1753500485154,1.30842781,117630.0,117620.0,0.00018]
[1753500485645,1.31142781,117630.0,117620.0,0.00018]
[1753500485857,1.31042781,117630.0,117620.0,0.00018]
[1753500486295,0.74264367,117630.0,117620.0,0.00018]
[1753500486523,1.31042781,117630.0,117620.0,0.00018]
[1753500486773,1.02653574,117630.0,117620.0,0.00018]
[1753500486991,1.31042781,117630.0,117620.0,0.00018]
[1753500487672,1.31142781,117630.0,117620.0,0.00018]
[1753500489085,0.74364367,117630.0,117620.0,0.00018]
[1753500489300,1.31142781,117630.0,117620.0,0.00018]
[1753500500838,1.31132781,117630.0,117620.0,0.00018]
[1753500501698,1.30846781,117630.0,117620.0,0.00018]
[1753500511448,1.33367665,117630.0,117620.0,0.00018]
[1753500514124,1.33654665,117630.0,117620.0,0.00018]
[1753500514535,1.35249069,117630.0,117620.0,0.00018]
[1753500515453,1.35846973,117630.0,117620.0,0.00018]
[1753500517236,1.40846973,117630.0,117620.0,0.00018]
[1753500518108,1.85176973,117630.0,117620.0,0.00018]
[1753500518762,1.8517616,117630.0,117620.0,0.00018]
[1753500528641,1.8488916,117630.0,117620.0,0.00018]
[1753500529815,1.83295345,117630.0,117620.0,0.00018]
[1753500530019,1.84888356,117630.0,117620.0,0.00018]
[1753500530674,1.72024356,117630.0,117620.0,0.00018]
[1753500530875,1.84892356,117630.0,117620.0,0.00018]
[1753500535821,1.84892416,117630.0,117620.0,0.00018]
[1753500539337,1.85178416,117630.0,117620.0,0.00018]
[1753500541046,1.85178314,117630.0,117620.0,0.00018]
[1753500543598,2.13567521,117630.0,117620.0,0.00018]
[1753500544046,1.85178314,117630.0,117620.0,0.00018]
[1753500544478,1.11229156,117610.0,117600.0,0.0281385]
[1753500544706,0.95727949,117610.0,117600.0,0.0301985]
[1753500545147,0.98282449,117610.0,117600.0,0.0301985]
[1753500546944,0.98482449,117610.0,117600.0,0.0301985]
[1753500549308,0.98582449,117610.0,117600.0,0.0301985]
[1753500550618,0.98781449,117610.0,117600.0,0.0301985]
[1753500553400,1.31130656,117610.0,117600.0,0.0001485]
[1753500553658,1.32660656,117610.0,117600.0,0.0001485]
[1753500554726,1.31130656,117610.0,117600.0,0.0001485]
[1753500559682,1.32740656,117610.0,117600.0,0.0001485]
[1753500560081,1.31130656,117610.0,117600.0,0.0001485]
[1753500562938,1.31130656,117610.0,117600.0,0.0250085]
[1753500564024,1.31024704,117610.0,117600.0,0.0250085]
[1753500564543,1.02635497,117610.0,117600.0,0.0301985]
[1753500565629,1.01025497,117610.0,117600.0,0.0301985]
[1753500568061,1.29414704,117610.0,117600.0,0.0301985]
[1753500568257,1.16526704,117610.0,117600.0,0.0301985]
[1753500568590,1.01013497,117610.0,117600.0,0.0301985]
[1753500570447,1.29402704,117610.0,117600.0,0.0301985]
[1753500572368,1.30912704,117610.0,117600.0,0.0001485]
[1753500574605,1.30912704,117610.0,117600.0,0.0240085]
[1753500576095,1.01013497,117610.0,117600.0,0.0291785]
[1753500579685,1.29402704,117610.0,117600.0,0.0291785]
[1753500580873,1.31595815,117610.0,117600.0,0.0291785]
[1753500582677,1.03206608,117610.0,117600.0,0.0291785]
[1753500584510,1.31595815,117610.0,117600.0,0.0291785]
[1753500584746,1.03206608,117610.0,117600.0,0.0291785]
[1753500584962,1.01611656,117610.0,117600.0,0.0291785]
[1753500585567,1.30000863,117610.0,117600.0,0.0291785]
[1753500586791,1.36510863,117610.0,117600.0,0.0001485]
[1753500586968,1.42723269,117610.0,117600.0,1e-08]
[1753500587395,1.39970908,117610.0,117600.0,1e-08]
[1753500587901,1.39970652,117610.0,117600.0,1e-08]
[1753500588130,1.39770652,117610.0,117600.0,1e-08]
[1753500588532,1.40170652,117610.0,117600.0,1e-08]
[1753500589148,1.40070652,117610.0,117600.0,1e-08]
[1753500589555,1.40370652,117610.0,117600.0,1e-08]
[1753500590585,1.45473652,117610.0,117600.0,1e-08]
[1753500590786,1.40370652,117610.0,117600.0,1e-08]
[1753500591176,1.40085652,117610.0,117600.0,1e-08]
[1753500599591,1.38505652,117610.0,117600.0,1e-08]
[1753500600039,0.81727238,117610.0,117600.0,1e-08]
[1753500600281,1.38505652,117610.0,117600.0,1e-08]
[1753500600508,1.04458656,117610.0,117600.0,0.04337001]
[1753500600703,1.04458656,117610.0,117600.0,0.05907001]
[1753500600704,0.91586656,117610.0,117600.0,0.05907001]
[1753500600967,1.03860497,117610.0,117600.0,0.05907001]
[1753500601205,1.27249704,117610.0,117600.0,0.05907001]
[1753500601434,0.9945784,117610.0,117600.0,0.05907001]
[1753500603459,0.71068633,117610.0,117600.0,0.05907001]
[1753500603687,0.9945784,117610.0,117600.0,0.05907001]
[1753500604624,1.01050982,117610.0,117600.0,0.05907001]
[1753500606013,0.72661775,117610.0,117600.0,0.05907001]
[1753500606227,1.01050982,117610.0,117600.0,0.05907001]
[1753500607363,1.01051211,117610.0,117600.0,0.05907001]
[1753500610197,1.01051211,117610.0,117600.0,0.04337001]
[1753500613370,1.01051211,117610.0,117600.0,0.05897001]
[1753500614617,1.01051211,117610.0,117600.0,0.04337001]
[1753500614826,0.9945784,117610.0,117600.0,0.04337001]
[1753500615246,1.01051945,117610.0,117600.0,0.04337001]
[1753500615657,0.9945784,117610.0,117600.0,0.04337001]
[1753500616294,0.9965584,117610.0,117600.0,0.04337001]
[1753500616942,1.0206684,117610.0,117600.0,0.04337001]
[1753500617144,1.0206684,117610.0,117600.0,0.00214001]
[1753500617355,1.0206684,117610.0,117600.0,1e-08]
[1753500617775,1.0206684,117610.0,117600.0,0.02259001]
[1753500617991,1.0206684,117610.0,117600.0,0.02473001]
[1753500618210,1.0206684,117610.0,117600.0,0.02259001]
[1753500620094,1.0206684,117610.0,117600.0,1e-08]
[1753500621861,1.0206684,117610.0,117600.0,0.02259001]
[1753500622068,1.0206684,117610.0,117600.0,1e-08]
[1753500622712,1.0206684,117610.0,117600.0,0.02259001]
[1753500624248,1.03661252,117610.0,117600.0,0.02259001]
[1753500633061,1.32050459,117610.0,117600.0,0.02259001]
[1753500633274,1.03661252,117610.0,117600.0,0.02259001]
[1753500633504,1.03662155,117610.0,117600.0,0.02259001]
[1753500633719,0.75272948,117610.0,117600.0,0.02259001]
[1753500633933,1.03662155,117610.0,117600.0,0.02259001]
[1753500634148,0.75283948,117610.0,117600.0,0.02396001]
[1753500634370,1.03673155,117610.0,117600.0,0.02396001]
[1753500637531,1.03669155,117610.0,117600.0,0.02396001]
[1753500638930,1.01247155,117610.0,117600.0,0.02919001]
[1753500639335,0.99054497,117610.0,117600.0,0.02919001]
[1753500639540,0.72858943,117610.0,117600.0,0.02919001]
[1753500639768,1.0105015,117610.0,117600.0,0.06119001]
[1753500639969,1.0124815,117610.0,117600.0,0.04559001]
[1753500641455,0.72858943,117610.0,117600.0,0.04559001]
[1753500641647,1.0124815,117610.0,117600.0,0.04559001]
[1753500641879,0.72858943,117610.0,117600.0,0.04559001]
[1753500642095,1.0367015,117610.0,117600.0,0.02919001]
[1753500642568,1.0124815,117610.0,117600.0,0.02919001]
[1753500643242,1.0124815,117610.0,117600.0,0.04559001]
[1753500643457,0.8818215,117610.0,117600.0,0.04559001]
[1753500643671,0.59792943,117610.0,117600.0,0.06119001]
[1753500643884,0.98856497,117610.0,117600.0,0.06119001]
[1753500646180,0.7046729,117610.0,117600.0,0.06119001]
[1753500646400,0.85988497,117610.0,117600.0,0.06119001]
[1753500646625,0.98856497,117610.0,117600.0,0.06119001]
[1753500648581,0.7046729,117610.0,117600.0,0.06119001]
[1753500648823,0.98856497,117610.0,117600.0,0.06119001]
[1753500649467,0.96301997,117610.0,117600.0,0.06119001]
[1753500652520,0.5504479,117610.0,117600.0,0.06119001]
[1753500652724,0.6791279,117610.0,117600.0,0.06119001]
[1753500652948,0.96301997,117610.0,117600.0,0.06119001]
[1753500653172,0.6791279,117610.0,117600.0,0.06119001]
[1753500656481,0.5504479,117610.0,117600.0,0.52365342]
[1753500656714,0.6791279,117610.0,117600.0,0.52365342]
[1753500657388,0.6751279,117610.0,117600.0,0.52365342]
[1753500657591,0.6721279,117610.0,117600.0,0.52365342]
[1753500657817,0.66462559,117610.0,117600.0,0.52365342]
[1753500658910,0.66562559,117610.0,117600.0,0.52365342]
[1753500659561,0.66562559,117610.0,117600.0,0.5151501]
[1753500659771,0.66562559,117610.0,117600.0,0.53215667]
[1753500660926,0.002,117610.0,117600.0,0.83305474]
[1753500661147,0.13064,117610.0,117600.0,0.83305474]
[1753500661324,0.13064,117610.0,117600.0,0.54916267]
[1753500661853,0.12964,117610.0,117600.0,0.54916267]
[1753500662278,0.3485013,117620.0,117610.0,0.22596071]
[1753500662500,0.48564274,117620.0,117610.0,0.51192278]
[1753500662715,0.4771413,117620.0,117610.0,0.53822278]
[1753500663980,0.48564267,117620.0,117610.0,0.53822278]
[1753500664632,0.49414419,117620.0,117610.0,0.25433071]
[1753500664840,0.50264585,117620.0,117610.0,0.53822278]
[1753500665481,0.49414419,117620.0,117610.0,0.53822278]
[1753500667456,0.37400585,117620.0,117610.0,0.53822278]
[1753500667691,0.50272585,117620.0,117610.0,0.53822278]
[1753500668374,0.51122766,117620.0,117610.0,0.53822278]
[1753500669892,0.51122824,117620.0,117610.0,0.53822278]
[1753500673731,0.51122824,117620.0,117610.0,0.52972061]
[1753500673959,0.50272687,117620.0,117610.0,0.52972061]
[1753500674176,0.50272687,117620.0,117610.0,0.53822292]
[1753500674603,0.49422463,117620.0,117610.0,0.54672509]
[1753500674846,0.5112281,117620.0,117610.0,0.54672516]
[1753500675069,0.51122875,117620.0,117610.0,0.25433085]
[1753500675293,0.34,117620.0,117610.0,0.54672509]
[1753500675506,0.35700296,117620.0,117610.0,0.54672509]
[1753500675699,0.3485013,117620.0,117610.0,0.54672509]
[1753500675998,0.35700274,117620.0,117610.0,0.54672509]
[1753500676222,0.36550433,117620.0,117610.0,0.54672509]
[1753500676443,0.35700274,117620.0,117610.0,0.54672509]
[1753500676663,0.3485013,117620.0,117610.0,0.54672509]
[1753500676836,0.36550426,117620.0,117610.0,0.54672509]
[1753500677448,0.37400592,117620.0,117610.0,0.53822292]
[1753500677647,0.35700267,117620.0,117610.0,0.55522733]
[1753500677827,0.36550419,117620.0,117610.0,0.55522733]
[1753500678034,0.37400585,117620.0,117610.0,0.55522733]
[1753500678522,0.36550419,117620.0,117610.0,0.55522733]
[1753500678740,0.34,117620.0,117610.0,0.55522733]
[1753500679196,0.50309039,117630.0,117620.0,0.22654423]
[1753500679414,0.5115914,117630.0,117620.0,0.50400471]
[1753500679633,0.52009256,117630.0,117620.0,0.53030471]
[1753500679845,0.52009234,117630.0,117620.0,0.5388063]
[1753500680037,0.51159133,117630.0,117620.0,0.53880615]
[1753500680688,0.48608902,117630.0,117620.0,0.53880615]
[1753500680915,0.02144902,117630.0,117620.0,0.53880615]
[1753500681141,0.15012902,117630.0,117620.0,0.53880615]
[1753500681605,0.14712902,117630.0,117620.0,0.53880615]
[1753500681845,0.12968,117630.0,117620.0,0.53880615]
[1753500682067,0.13068,117630.0,117620.0,0.53880615]
[1753500682278,0.002,117630.0,117620.0,0.53880615]
[1753500683158,0.3655,117640.0,117630.0,0.22652747]
[1753500683364,0.35699993,117640.0,117630.0,0.51248954]
[1753500683593,0.35699993,117640.0,117630.0,0.66746954]
[1753500683825,0.34849985,117640.0,117630.0,0.66746954]
[1753500684715,0.34949985,117640.0,117630.0,0.66746954]
[1753500684895,0.001,117640.0,117630.0,0.66746954]
[1753500685314,0.01844902,117640.0,117630.0,0.66746954]
[1753500685910,0.01844902,117640.0,117630.0,0.66846954]
[1753500686541,0.02694887,117640.0,117630.0,0.66846954]
[1753500686873,0.01844902,117640.0,117630.0,0.66846954]
[1753500687093,0.001,117640.0,117630.0,0.95236161]
[1753500689089,0.001,117640.0,117630.0,0.82368161]
[1753500689308,0.001,117640.0,117630.0,0.95244161]
[1753500691932,0.001,117640.0,117630.0,0.38465747]
[1753500692525,0.001,117640.0,117630.0,0.95244161]
[1753500698097,0.001,117640.0,117630.0,0.66854954]
[1753500711460,0.001,117640.0,117630.0,0.66715485]
[1753500712511,0.00099999,117640.0,117630.0,0.66715485]
[1753500722352,0.00099999,117640.0,117630.0,0.95104692]
[1753500722531,0.00099999,117640.0,117630.0,0.66715485]
[1753500723502,0.00099999,117640.0,117630.0,0.95104692]
[1753500723729,0.00099999,117640.0,117630.0,0.66715485]
[1753500723925,0.00099999,117640.0,117630.0,0.65135485]
[1753500724781,0.00099999,117640.0,117630.0,0.36746278]
[1753500724987,0.00099999,117640.0,117630.0,0.65135485]
[1753500730351,0.00061175,117640.0,117630.0,0.65135485]
[1753500730542,0.00061175,117640.0,117630.0,0.66775485]
[1753500736711,0.00061175,117640.0,117630.0,0.65135485]
[1753500745322,0.00061175,117640.0,117630.0,0.66735485]
[1753500747177,0.00061175,117640.0,117630.0,0.65135485]
[1753500750162,0.00061175,117640.0,117630.0,0.95124692]
[1753500750366,0.00061175,117640.0,117630.0,0.66735485]
[1753500750570,0.00061175,117640.0,117630.0,0.95124692]
[1753500754448,0.50673298,117660.0,117650.0,0.00849928]
[1753500754622,0.1800748,117660.0,117650.0,0.21904423]
[1753500755461,0.18857379,117660.0,117650.0,0.21904423]
[1753500755666,0.19005881,117660.0,117650.0,0.19549423]
[1753500755864,0.19005881,117660.0,117650.0,0.18699495]
[1753500755865,0.47395146,117660.0,117650.0,0.18699495]
[1753500756035,0.35440206,117660.0,117650.0,0.18699495]
[1753500756238,0.62979536,117660.0,117650.0,0.18699495]
[1753500756440,0.64378536,117660.0,117650.0,0.18699495]
[1753500756894,0.64678536,117660.0,117650.0,0.18699495]
[1753500757154,0.64678536,117660.0,117650.0,0.19549437]
[1753500757567,0.66328536,117660.0,117650.0,0.19549437]
[1753500760174,0.39684231,117660.0,117650.0,0.19549437]
[1753500760412,0.68073438,117660.0,117650.0,0.20399372]
[1753500760864,0.66388438,117660.0,117650.0,0.20399372]
[1753500761779,0.66288438,117660.0,117650.0,0.20399372]
[1753500763858,1.00288438,117660.0,117650.0,0.19549437]
[1753500764722,1.00288438,117660.0,117650.0,0.21904437]
[1753500767517,0.98638438,117660.0,117650.0,0.21904437]
[1753500768783,0.64638438,117660.0,117650.0,0.22004437]
[1753500770068,0.64638438,117660.0,117650.0,0.21154495]
[1753500770961,0.63788546,117660.0,117650.0,0.20304546]
[1753500771126,0.62938647,117660.0,117650.0,0.2115451]
[1753500771329,0.62938647,117660.0,117650.0,0.22004467]
[1753500775899,0.32804538,117660.0,117650.0,0.22004467]
[1753500776102,0.61193745,117660.0,117650.0,0.22004467]
[1753500780283,0.61193745,117660.0,117650.0,0.20304546]
[1753500780524,0.60343839,117660.0,117650.0,0.02455]
[1753500780802,0.60343839,117660.0,117650.0,0.03304978]
[1753500781314,0.60343839,117660.0,117650.0,0.21154524]
[1753500782008,0.65413741,117660.0,117650.0,0.001]
[1753500782451,0.62088741,117660.0,117650.0,0.20398553]
[1753500782652,0.6293864,117660.0,117650.0,0.2145251]
[1753500782862,0.6293864,117660.0,117650.0,0.2174851]
[1753500783519,0.64638423,117660.0,117650.0,0.22598452]
[1753500783949,0.64638423,117660.0,117650.0,0.22598459]
[1753500784349,0.64638423,117660.0,117650.0,0.20898553]
[1753500784600,0.63788546,117660.0,117650.0,0.20898553]
[1753500784824,0.62088741,117660.0,117650.0,0.20898553]
[1753500785662,0.62088741,117660.0,117650.0,0.21748517]
[1753500786649,0.62088741,117660.0,117650.0,0.001]
[1753500786853,0.93803948,117660.0,117650.0,0.001]
[1753500796097,0.93516948,117660.0,117650.0,0.001]
[1753500796944,0.92117948,117660.0,117650.0,0.001]
[1753500798220,0.90477948,117660.0,117650.0,0.001]
[1753500798702,0.92017948,117660.0,117650.0,0.001]
[1753500799136,0.93702948,117660.0,117650.0,0.001]
[1753500799384,0.65313741,117660.0,117650.0,0.001]
[1753500799592,0.63628741,117660.0,117650.0,0.001]
[1753500800368,0.62088741,117660.0,117650.0,0.001]
[1753500800574,0.62088741,117660.0,117650.0,0.02549]
[1753500809817,0.62088741,117660.0,117650.0,0.001]
[1753500810494,0.93822948,117660.0,117650.0,0.001]
[1753500811803,0.71044534,117660.0,117650.0,0.001]
[1753500812011,1.27822948,117660.0,117650.0,0.001]
[1753500813367,1.29416462,117660.0,117650.0,0.001]
[1753500815541,1.31969962,117660.0,117650.0,0.001]
[1753500815786,1.32414053,117660.0,117650.0,0.001]
[1753500818972,1.32412494,117660.0,117650.0,0.001]
[1753500821483,1.32411931,117660.0,117650.0,0.001]
[1753500823618,1.29858431,117660.0,117650.0,0.001]
[1753500826229,1.28267039,117660.0,117650.0,0.001]
[1753500827105,0.71488625,117660.0,117650.0,0.001]
[1753500827347,1.28267039,117660.0,117650.0,0.001]
[1753500829218,1.25022039,117660.0,117650.0,0.02351]
[1753500831080,1.25022039,117660.0,117650.0,0.02566]
[1753500831279,1.25022039,117660.0,117650.0,0.02869]
[1753500833722,1.23274039,117660.0,117650.0,0.04509]
[1753500833939,0.66495625,117660.0,117650.0,0.04509]
[1753500834154,1.23274039,117660.0,117650.0,0.04509]
[1753500835295,1.24854039,117660.0,117650.0,0.04509]
[1753500837658,1.27348932,117660.0,117650.0,0.04509]
[1753500838068,1.27546932,117660.0,117650.0,0.04509]
[1753500839557,1.27542632,117660.0,117650.0,0.04509]
[1753500856566,1.2579773,117660.0,117650.0,0.04509]
[1753500856982,1.27542632,117660.0,117650.0,0.04509]
[1753500859852,1.2579773,117660.0,117650.0,0.04509]
[1753500860052,1.27542632,117660.0,117650.0,0.04509]
[1753500865220,1.25958632,117660.0,117650.0,0.04509]
[1753500865419,1.25760632,117660.0,117650.0,0.04509]
[1753500867158,1.25958632,117660.0,117650.0,0.04509]
[1753500869578,0.94876532,117660.0,117650.0,0.06109]
[1753500874264,0.94876532,117660.0,117650.0,0.04509]
[1753500875111,0.95074532,117660.0,117650.0,0.04509]
[1753500875736,1.23463739,117660.0,117650.0,0.04509]
[1753500878407,0.95074532,117660.0,117650.0,0.04509]
[1753500883155,0.67742996,117660.0,117650.0,0.23098575]
[1753500883306,0.96132203,117660.0,117650.0,0.23098575]
[1753500884595,0.79134073,117660.0,117650.0,0.23098575]
[1753500884800,0.79983979,117660.0,117650.0,0.23948546]
[1753500885011,0.79983979,117660.0,117650.0,0.23948553]
[1753500885230,0.51594772,117660.0,117650.0,0.23948553]
[1753500885433,0.51594772,117660.0,117650.0,0.23098575]
[1753500885788,0.51594772,117660.0,117650.0,0.23948553]
[1753500885995,0.51594772,117660.0,117650.0,0.23098575]
[1753500886792,0.79983979,117660.0,117650.0,0.23098575]
[1753500887633,0.79134073,117660.0,117650.0,0.23948546]
[1753500887845,0.3529405,117660.0,117650.0,0.5403763]
[1753500888056,0.3614392,117660.0,117650.0,0.54037644]
[1753500888297,0.4899992,117660.0,117650.0,0.25648437]
[1753500888535,0.4899992,117660.0,117650.0,0.26498372]
[1753500888759,0.48999913,117660.0,117650.0,0.26498372]
[1753500892959,0.4984979,117660.0,117650.0,0.25648437]
[1753500893196,0.4984979,117660.0,117650.0,0.24798495]
[1753500894313,0.4984979,117660.0,117650.0,0.25648437]
[1753500894838,0.4984979,117660.0,117650.0,0.24798495]
[1753500895745,0.4984979,117660.0,117650.0,0.23948546]
[1753500895962,0.50699682,117660.0,117650.0,0.24798503]
[1753500896657,0.4984979,117660.0,117650.0,0.24798503]
[1753500896883,0.4984979,117660.0,117650.0,0.25648452]
[1753500897207,0.50699682,117660.0,117650.0,0.24798503]
[1753500898284,0.4984979,117660.0,117650.0,0.25648452]
[1753500899907,0.50699674,117660.0,117650.0,0.25648452]
[1753500900540,0.4984979,117660.0,117650.0,0.25648452]
[1753500903136,0.50699674,117660.0,117650.0,0.25648452]
[1753500905160,0.50699674,117660.0,117650.0,0.24798503]
[1753500906381,0.50699674,117660.0,117650.0,0.25648452]
[1753500906823,0.4984979,117660.0,117650.0,0.26498394]
[1753500907002,0.4984979,117660.0,117650.0,0.25648452]
[1753500907141,0.4984979,117660.0,117650.0,0.26498394]
[1753500907570,0.4984979,117660.0,117650.0,0.25648452]
[1753500907784,0.4984979,117660.0,117650.0,0.26498394]
[1753500907999,0.4984979,117660.0,117650.0,0.25648452]
[1753500910291,0.50699674,117660.0,117650.0,0.24798503]
[1753500910483,0.50699674,117660.0,117650.0,0.25648452]
[1753500911480,0.4984979,117660.0,117650.0,0.25648452]
[1753500911993,0.4984979,117660.0,117650.0,0.26498394]
[1753500912222,0.48999913,117660.0,117650.0,0.26498394]
[1753500912621,0.4984979,117660.0,117650.0,0.26498394]
[1753500912856,0.4984979,117660.0,117650.0,0.25648452]
[1753500913068,0.4984979,117660.0,117650.0,0.26498394]
[1753500913573,0.4984979,117660.0,117650.0,0.25648452]
[1753500915881,0.50699674,117660.0,117650.0,0.25648452]
[1753500916262,0.4984979,117660.0,117650.0,0.26498394]
[1753500916965,0.4984979,117660.0,117650.0,0.25648452]
[1753500918847,0.4984979,117660.0,117650.0,0.24058452]
[1753500919787,0.5154958,117660.0,117650.0,0.24058452]
[1753500920949,0.51549573,117660.0,117650.0,0.24908394]
[1753500921122,0.50699725,117660.0,117650.0,0.23208503]
[1753500921337,0.50699725,117660.0,117650.0,0.24058452]
[1753500921576,0.50699725,117660.0,117650.0,0.22358546]
[1753500921770,0.50699725,117660.0,117650.0,0.23208503]
[1753500922049,0.50897725,117660.0,117650.0,0.23208503]
[1753500922252,0.66196115,117660.0,117650.0,0.22358553]
[1753500922695,0.65346231,117660.0,117650.0,0.21508575]
[1753500922942,0.65346231,117660.0,117650.0,0.21205575]
[1753500923123,0.93735438,117660.0,117650.0,0.21205575]
[1753500923347,0.97865441,117660.0,117650.0,0.001]
[1753500923557,0.69476234,117660.0,117650.0,0.001]
[1753500923776,0.97865441,117660.0,117650.0,0.001]
[1753500924449,0.96180441,117660.0,117650.0,0.001]
[1753500924869,0.68641126,117660.0,117650.0,0.17949553]
[1753500925075,0.97030333,117660.0,117650.0,0.20423553]
[1753500925746,0.97030333,117660.0,117650.0,0.19573575]
[1753500925981,0.97030333,117660.0,117650.0,0.20423553]
[1753500926209,0.97030333,117660.0,117650.0,0.19573575]
[1753500926413,0.97030333,117660.0,117650.0,0.20423553]
[1753500926627,0.97030333,117660.0,117650.0,0.19573575]
[1753500929334,0.96180441,117660.0,117650.0,0.02574]
[1753500930515,0.96180441,117660.0,117650.0,0.19573575]
[1753500931893,0.97865441,117660.0,117650.0,0.001]
[1753500933246,1.27824648,117660.0,117650.0,0.001]
[1753500934903,0.99435441,117660.0,117650.0,0.001]
[1753500935131,0.71046234,117660.0,117650.0,0.001]
[1753500935365,0.99435441,117660.0,117650.0,0.001]
[1753500937298,0.97865441,117660.0,117650.0,0.001]
[1753500939774,0.96180441,117660.0,117650.0,0.001]
[1753500940869,0.96180441,117660.0,117650.0,0.02496]
[1753500944194,0.67791234,117660.0,117650.0,0.02496]
[1753500944516,0.96180441,117660.0,117650.0,0.02496]
[1753500948343,0.96180441,117660.0,117650.0,0.001]
[1753500948547,1.26254648,117660.0,117650.0,0.001]
[1753500949370,0.97865441,117660.0,117650.0,0.001]
[1753500951182,0.96180441,117660.0,117650.0,0.02496]
[1753500951398,0.96180441,117660.0,117650.0,0.001]
[1753500951964,0.96180441,117660.0,117650.0,0.02496]
[1753500961159,0.96180441,117660.0,117650.0,0.001]
[1753500961408,0.96180441,117660.0,117650.0,0.00199]
[1753500961661,0.96180441,117660.0,117650.0,0.02549]
[1753500969681,0.67791234,117660.0,117650.0,0.02549]
[1753500969888,0.96180441,117660.0,117650.0,0.02549]
[1753500976036,0.67791234,117660.0,117650.0,0.02549]
[1753500976244,0.96180441,117660.0,117650.0,0.02549]
[1753500976869,0.96180441,117660.0,117650.0,0.04169]
[1753500977722,0.96180441,117660.0,117650.0,0.02549]
[1753500983175,0.96180441,117660.0,117650.0,0.04139]
[1753500985319,0.94630441,117660.0,117650.0,0.04139]
[1753500986338,0.94630441,117660.0,117650.0,0.04433]
[1753500987960,0.94630441,117660.0,117650.0,0.04636]
[1753500997978,0.94622441,117660.0,117650.0,0.04636]
[1753500998813,0.94523441,117660.0,117650.0,0.04537]
[1753501000465,0.66786126,117660.0,117650.0,0.24046546]
[1753501000686,0.67636025,117660.0,117650.0,0.24046546]
[1753501000893,0.67636025,117660.0,117650.0,0.53285717]
[1753501001108,0.67636025,117660.0,117650.0,0.25746467]
[1753501001322,0.51487714,117660.0,117650.0,0.54985623]
[1753501001541,0.5233762,117660.0,117650.0,0.55835565]
[1753501001908,0.5233762,117660.0,117650.0,0.55835529]
[1753501002684,0.5233762,117660.0,117650.0,0.27446322]
[1753501002898,0.68485902,117660.0,117650.0,0.54985594]
[1753501003299,0.68485902,117660.0,117650.0,0.54135652]
[1753501003511,0.67636032,117660.0,117650.0,0.54135652]
[1753501006418,0.6678614,117660.0,117650.0,0.53285703]
[1753501006823,0.65936234,117660.0,117650.0,0.52435746]
[1753501007456,0.65936234,117660.0,117650.0,0.34586207]
[1753501007664,0.65936234,117660.0,117650.0,0.35436178]
[1753501007882,0.65936234,117660.0,117650.0,0.53285717]
[1753501008923,0.65936234,117660.0,117650.0,0.2489651]
[1753501009104,0.65936234,117660.0,117650.0,0.52435753]
[1753501009512,0.65936234,117660.0,117650.0,0.24046546]
[1753501011701,0.65936234,117660.0,117650.0,0.2489651]
[1753501011903,0.65936234,117660.0,117650.0,0.53285717]
[1753501016741,0.65936234,117660.0,117650.0,0.34586207]
[1753501017094,0.65936234,117660.0,117650.0,0.06197]
[1753501018032,0.65936234,117660.0,117650.0,0.24046553]
[1753501018238,0.65936234,117660.0,117650.0,0.53285731]
[1753501019468,0.65936234,117660.0,117650.0,0.24896524]
[1753501021053,0.65936234,117660.0,117650.0,0.53285731]
[1753501022318,0.65936234,117660.0,117650.0,0.24896524]
[1753501022957,0.65936234,117660.0,117650.0,0.25746488]
[1753501023515,0.65936234,117660.0,117650.0,0.54135695]
[1753501023731,0.65936234,117660.0,117650.0,0.25746488]
[1753501023935,0.65936234,117660.0,117650.0,0.54135695]
[1753501024128,0.65936234,117660.0,117650.0,0.25746488]
[1753501025566,0.65936234,117660.0,117650.0,0.24896524]
[1753501026892,0.65936234,117660.0,117650.0,0.25746488]
[1753501027318,0.48888992,117660.0,117650.0,0.54985637]
[1753501027521,0.49738855,117660.0,117650.0,0.55835572]
[1753501028968,0.66736985,117660.0,117650.0,0.55835572]
[1753501031829,0.66736985,117660.0,117650.0,0.27446365]
[1753501032044,0.66736985,117660.0,117650.0,0.55835572]
[1753501033594,0.66736985,117660.0,117650.0,0.54985637]
[1753501035658,0.65887122,117660.0,117650.0,0.54135695]
[1753501036272,0.65887122,117660.0,117650.0,0.54985652]
[1753501039024,0.65037238,117660.0,117650.0,0.54985652]
[1753501039430,0.65037238,117660.0,117650.0,0.26596445]
[1753501040519,0.64187332,117660.0,117650.0,0.06197]
[1753501040734,0.64187332,117660.0,117650.0,0.05386978]
[1753501041420,0.64187332,117660.0,117650.0,0.23236524]
[1753501045629,0.64187332,117660.0,117650.0,0.04537]
[1753501045854,0.92774539,117660.0,117650.0,0.04537]
[1753501046671,0.54090942,117660.0,117650.0,0.23236495]
[1753501046883,0.3709279,117660.0,117650.0,0.23236495]
[1753501047057,0.37942689,117660.0,117650.0,0.22386546]
[1753501047238,0.38792595,117660.0,117650.0,0.49925782]
[1753501047455,0.37942754,117660.0,117650.0,0.50775753]
[1753501047669,0.37092848,117660.0,117650.0,0.23236503]
[1753501047895,0.37092848,117660.0,117650.0,0.24086467]